bitfinex/quotes_ETHUSD_20241123
["timestamp","ask_amount","ask_price","bid_price","bid_amount"]
[1732340605432,0.55,3330.1,3329.6,0.28474498]
[1732340606208,0.55,3330.1,3329.7,0.28474498]
[1732340607334,0.55,3330.1,3329.4,0.28474498]
[1732340607640,0.71822782,3330.9,3329.8,0.28474498]
[1732340607641,0.8201,3330.7,3329.8,0.28474498]
[1732340607861,0.82740964,3330.6,3329.8,0.28474498]
[1732340608024,0.55,3330.4,3329.8,0.28474498]
[1732340608336,0.55,3330.0,3329.8,0.28474498]
[1732340608547,0.55,3330.0,3329.9,0.28474498]
[1732340609695,0.55,3330.0,3329.4,0.28474498]
[1732340610613,0.55,3330.0,3329.3,0.28474498]
[1732340611128,0.55,3330.0,3329.3,3.28474498]
[1732340611328,0.55,3330.0,3329.3,0.28474498]
[1732340614642,0.55,3330.0,3329.3,3.28474498]
[1732340615530,0.55,3330.0,3329.4,0.03955876]
[1732340621133,0.55,3329.8,3329.4,0.03955876]
[1732340621435,0.55,3329.4,3329.1,0.28002664]
[1732340621816,0.55,3329.4,3329.2,0.03820492]
[1732340622017,1.3152,3329.3,3329.2,0.03820492]
[1732340622321,0.55,3329.2,3328.4,0.28002664]
[1732340622524,0.55,3329.2,3328.5,0.0383453]
[1732340622823,0.55,3329.2,3328.4,0.28002664]
[1732340623132,0.55,3329.2,3328.8,0.28002664]
[1732340623334,0.55,3329.2,3328.9,0.03826507]
[1732340624358,0.55,3329.2,3328.4,0.28002664]
[1732340624661,0.55,3329.2,3328.5,0.0383453]
[1732340625020,0.01,3330.2,3328.7,0.28002664]
[1732340625224,0.7652,3330.0,3328.9,0.28002664]
[1732340625453,0.2771036,3329.9,3328.9,0.28002664]
[1732340625785,0.2771036,3329.9,3329.0,0.03824502]
[1732340626277,0.7652,3330.0,3329.0,0.03824502]
[1732340626571,0.55,3329.9,3329.0,0.03824502]
[1732340627958,0.7652,3329.8,3329.0,0.03824502]
[1732340628342,0.55,3329.7,3329.0,0.03824502]
[1732340628549,0.55,3329.7,3328.9,0.28002664]
[1732340628739,0.55,3329.7,3329.0,0.03827149]
[1732340629940,0.7652,3329.6,3329.0,0.03827149]
[1732340630365,0.55,3329.5,3329.0,0.03827149]
[1732340630577,0.55,3329.5,3328.9,0.28002664]
[1732340631098,0.55,3329.5,3329.0,0.03827149]
[1732340639096,0.55,3329.5,3328.9,0.28002664]
[1732340640714,0.55,3329.5,3329.0,0.03827146]
[1732340641066,0.55,3329.5,3328.9,0.28002664]
[1732340641270,0.55,3329.5,3329.0,0.03827146]
[1732340641510,0.55,3329.5,3328.9,0.28002664]
[1732340641808,0.55,3329.5,3329.0,0.03827146]
[1732340642908,0.55,3329.7,3329.0,0.03827146]
[1732340643205,0.55,3329.7,3328.9,0.28002664]
[1732340643569,0.55,3330.0,3328.5,0.28002664]
[1732340643775,0.55,3329.8,3329.1,0.28002664]
[1732340643996,0.55,3329.8,3329.2,0.03831279]
[1732340644368,0.55,3330.0,3329.2,0.03831279]
[1732340644717,0.7872,3330.1,3329.3,1.10952664]
[1732340645087,0.7872,3330.1,3329.4,0.03827269]
[1732340645289,0.7872,3330.8,3329.5,0.8295]
[1732340645591,0.27741816,3330.7,3329.7,1.10952664]
[1732340645798,0.27748398,3330.6,3329.9,0.28002664]
[1732340645999,0.7872,3330.8,3329.9,0.28002664]
[1732340646197,0.7872,3330.8,3330.0,0.03810968]
[1732340646777,0.0446477,3330.9,3330.2,0.28002664]
[1732340646974,0.0446477,3330.9,3330.3,0.03804957]
[1732340647173,0.0446477,3330.9,3330.4,0.8295]
[1732340647391,0.0446477,3330.9,3330.5,0.31799543]
[1732340650917,0.0446477,3330.9,3330.8,1.11125288]
[1732340651275,0.0446477,3330.9,3330.8,1.14898247]
[1732340662641,0.0446477,3331.9,3331.3,0.28175288]
[1732340662846,0.0446477,3331.9,3331.4,0.00644458]
[1732340663057,0.0446477,3331.9,3331.5,0.00644458]
[1732340663429,0.0446477,3331.9,3331.7,0.00644458]
[1732340663755,0.0446477,3331.9,3331.8,0.04401759]
[1732340668243,0.0446477,3331.9,3331.8,0.31932589]
[1732340670258,0.0446477,3331.9,3331.8,1.29637016]
[1732340671655,0.0446477,3332.9,3331.8,1.29637016]
[1732340671656,0.0446477,3332.9,3332.2,0.00644458]
[1732340671857,0.0446477,3332.9,3332.5,0.00644458]
[1732340672263,0.0446477,3332.9,3332.7,0.00644458]
[1732340672760,0.0446477,3332.9,3332.8,0.04362053]
[1732340675561,0.0446477,3332.9,3332.8,1.11712883]
[1732340692469,0.789,3333.5,3332.8,1.11712883]
[1732340692470,0.789,3333.5,3332.9,0.00644458]
[1732340692984,0.789,3333.5,3333.1,0.00644458]
[1732340693193,0.789,3333.5,3333.2,0.03687269]
[1732340695165,0.789,3333.5,3333.1,0.00644458]
[1732340696675,0.55,3333.4,3333.1,0.00644458]
[1732340697008,0.829,3333.3,3333.1,0.00644458]
[1732340699079,0.829,3333.3,3333.2,0.04202904]
[1732340699880,0.829,3333.3,3333.2,0.0360124]
[1732340703085,1.10691622,3333.3,3333.2,0.0360124]
[1732340703514,1.10691622,3333.3,3333.1,0.00644458]
[1732340703515,1.10691622,3333.3,3332.5,0.2986]
[1732340703729,0.829,3333.3,3332.5,0.2986]
[1732340703889,0.829,3333.3,3332.6,0.03418762]
[1732340706124,0.829,3333.3,3332.7,0.2986]
[1732340706285,0.829,3333.3,3332.7,0.63187876]
[1732340706481,0.829,3333.3,3332.8,0.03412749]
[1732340706925,0.829,3333.3,3332.7,0.2986]
[1732340707135,0.829,3333.3,3332.9,0.03411414]
[1732340707281,0.829,3333.3,3331.3,0.28318392]
[1732340707282,0.829,3333.3,3332.8,0.03412736]
[1732340707488,0.829,3333.3,3333.0,0.03408734]
[1732340707803,0.829,3333.3,3333.1,0.03406734]
[1732340707994,0.829,3333.3,3332.7,0.2986]
[1732340708231,0.829,3333.3,3332.8,0.03412736]
[1732340708424,0.829,3333.3,3332.7,0.2986]
[1732340708747,0.829,3333.3,3332.8,0.03412736]
[1732340709257,0.829,3333.3,3332.9,0.03409062]
[1732340709726,0.829,3333.3,3332.5,0.2986]
[1732340709911,0.829,3333.3,3333.0,0.03407061]
[1732340710249,0.829,3333.3,3333.1,0.03405061]
[1732340710422,0.829,3333.3,3332.7,0.2986]
[1732340710751,0.829,3333.3,3332.8,0.03411062]
[1732340711112,0.829,3333.3,3332.7,0.2986]
[1732340711316,0.829,3333.3,3332.9,0.03405812]
[1732340711545,0.829,3333.3,3332.8,0.03407812]
[1732340711891,0.829,3333.3,3332.9,0.03406491]
[1732340712049,0.27784794,3333.2,3332.9,0.03406491]
[1732340712227,1.07934794,3333.1,3332.7,0.2986]
[1732340712429,0.27784794,3333.0,3332.8,0.03277081]
[1732340712758,0.27784794,3333.0,3332.2,0.2986]
[1732340713253,0.27784794,3333.0,3332.3,0.0328642]
[1732340713750,0.8015,3332.9,3332.3,0.3314642]
[1732340714734,0.27788496,3332.8,3332.3,0.3314642]
[1732340714950,0.27788496,3332.8,3332.4,0.2986]
[1732340715457,0.8015,3332.9,3332.5,0.03174744]
[1732340716232,0.8015,3332.9,3332.0,0.2986]
[1732340716570,0.8015,3332.9,3332.1,0.03183429]
[1732340719577,0.0446477,3333.9,3332.1,0.03183429]
[1732340719578,0.7955,3333.1,3332.3,0.2986]
[1732340719879,0.7955,3333.1,3332.4,0.0318014]
[1732340720058,0.7955,3333.1,3332.6,0.2986]
[1732340720256,0.7955,3333.1,3332.7,0.03174136]
[1732340721379,0.7955,3333.1,3332.6,0.2986]
[1732340721540,0.7955,3333.1,3332.7,0.03174811]
[1732340722763,0.7955,3333.1,3332.8,0.2986]
[1732340722982,0.7955,3333.1,3332.9,0.03171519]
[1732340725078,0.7955,3333.8,3332.9,0.03171519]
[1732340725275,0.27800245,3333.7,3332.9,0.03171519]
[1732340725475,0.27800245,3333.7,3332.8,0.2986]
[1732340725476,0.45562864,3333.6,3332.8,0.2986]
[1732340725657,0.27800245,3333.5,3333.0,0.03168843]
[1732340725852,0.27800245,3333.5,3332.8,0.2986]
[1732340726091,0.27800245,3333.5,3332.9,0.03170844]
[1732340726464,0.17762619,3333.6,3332.8,0.2986]
[1732340726674,1.07346142,3333.5,3332.8,0.2986]
[1732340726950,0.27796142,3333.4,3332.9,0.03171519]
[1732340727293,0.7955,3333.5,3332.8,0.2986]
[1732340727493,0.2779622,3333.4,3332.8,0.2986]
[1732340727674,0.2779622,3333.4,3332.9,0.03171519]
[1732340727994,0.2779622,3333.4,3332.8,0.2986]
[1732340728199,0.7955,3333.5,3332.9,0.03171519]
[1732340728374,0.27790965,3333.4,3332.9,0.03171519]
[1732340729085,0.27790965,3333.4,3332.8,0.2986]
[1732340729369,0.7955,3333.5,3332.9,0.03171519]
[1732340729686,0.27788516,3333.4,3332.8,0.2986]
[1732340730003,0.27788516,3333.4,3332.9,0.03171519]
[1732340730174,0.27788516,3333.4,3333.0,0.2986]
[1732340730368,0.7955,3333.5,3333.1,0.03167517]
[1732340730562,0.27783888,3333.4,3333.1,0.03167517]
[1732340733227,0.7955,3333.5,3333.1,0.03167517]
[1732340733407,0.27782682,3333.4,3333.1,0.03167517]
[1732340734610,0.7955,3333.5,3333.1,0.03167517]
[1732340735986,0.27780867,3333.4,3333.1,0.03167517]
[1732340736186,0.7955,3333.5,3333.1,0.03167517]
[1732340736992,0.27778417,3333.4,3333.1,0.03167517]
[1732340737188,0.7955,3333.5,3333.1,0.03167517]
[1732340737622,0.7811,3333.8,3333.4,0.00644458]
[1732340737917,0.0446477,3333.9,3333.4,0.00644458]
[1732340737918,0.0446477,3333.9,3333.6,0.00644458]
[1732340738127,0.27780551,3333.8,3333.6,0.00644458]
[1732340738302,0.0446477,3333.9,3333.8,0.00644458]
[1732340738497,0.32240828,3333.9,3333.8,0.00644458]
[1732340738705,0.32240828,3333.9,3333.8,0.03680696]
[1732340738910,0.0446477,3333.9,3333.8,0.00644458]
[1732340739106,0.0446477,3333.9,3333.8,0.03680696]
[1732340739333,0.32236053,3333.9,3333.8,0.00644458]
[1732340739530,0.32236053,3333.9,3333.8,0.03680696]
[1732340739733,0.32236053,3333.9,3333.8,0.00644458]
[1732340739926,0.32236053,3333.9,3333.8,0.03680696]
[1732340740127,0.0446477,3333.9,3333.8,0.00644458]
[1732340740592,0.0446477,3333.9,3333.8,0.03680696]
[1732340741221,0.0446477,3333.9,3333.8,0.33540696]
[1732340747937,0.0446477,3333.9,3333.8,0.03680696]
[1732340752328,0.0446477,3333.9,3333.8,1.14030696]
[1732340758103,0.01,3335.6,3333.8,1.14030696]
[1732340758104,0.8163,3336.3,3334.9,0.2986]
[1732340758306,0.8163,3336.3,3335.1,0.2986]
[1732340758733,0.8163,3336.3,3335.2,0.02987649]
[1732340758908,0.8163,3336.3,3335.3,0.00644458]
[1732340759345,0.7709,3335.8,3335.4,0.02973906]
[1732340759714,0.7709,3335.8,3335.5,0.00644458]
[1732340760116,0.7709,3335.8,3335.7,0.00644458]
[1732340760442,0.7709,3335.8,3335.7,0.03603517]
[1732340760644,0.7709,3335.8,3335.7,0.00644458]
[1732340767740,1.3209,3335.8,3335.7,0.00644458]
[1732340767940,1.3326,3335.8,3335.7,0.00644458]
[1732340768959,0.7826,3335.8,3335.7,0.00644458]
[1732340770068,1.3326,3335.8,3335.7,0.00644458]
[1732340770223,1.60966567,3335.8,3335.7,0.00644458]
[1732340770562,1.79509701,3335.8,3335.7,0.00644458]
[1732340771561,1.78509701,3335.8,3335.7,0.00644458]
[1732340772650,2.43894715,3335.8,3335.7,0.00644458]
[1732340774729,2.43893555,3335.8,3335.7,0.00644458]
[1732340774929,2.43891863,3335.8,3335.7,0.00644458]
[1732340775263,2.42891863,3335.8,3335.7,0.00644458]
[1732340775466,2.43891863,3335.8,3335.7,0.00644458]
[1732340778177,2.16188148,3335.8,3335.7,0.00644458]
[1732340778476,2.4390418,3335.8,3335.7,0.00644458]
[1732340779066,0.01,3335.7,3334.4,0.2986]
[1732340779278,0.55,3335.3,3334.2,0.7771]
[1732340779573,0.7561,3335.0,3334.3,0.2986]
[1732340779789,0.27716032,3334.9,3334.3,0.2986]
[1732340782960,0.7561,3335.2,3334.3,0.2986]
[1732340783317,0.27758611,3335.1,3334.3,0.2986]
[1732340786211,0.55,3335.0,3334.3,0.2986]
[1732340786378,0.55,3334.8,3334.4,0.2986]
[1732340786682,0.27758611,3334.7,3334.4,0.2986]
[1732340787063,0.7561,3334.6,3333.7,0.7771]
[1732340787175,0.43595472,3334.5,3333.8,0.2986]
[1732340787376,0.15836861,3334.5,3333.8,0.2986]
[1732340788672,0.7561,3334.4,3333.7,0.2986]
[1732340788872,0.82761426,3334.3,3333.7,0.2986]
[1732340789074,0.27761426,3334.2,3333.7,0.2986]
[1732340789309,0.7561,3334.1,3333.7,0.2986]
[1732340789527,0.43598569,3334.0,3333.7,0.2986]
[1732340789677,0.15837143,3334.0,3333.8,0.2986]
[1732340790085,0.15837143,3334.0,3333.1,0.47859575]
[1732340790289,1.03358387,3333.9,3333.0,0.7771]
[1732340790596,0.27735446,3333.8,3333.0,0.7771]
[1732340791192,0.27735446,3333.8,3333.1,0.2986]
[1732340792216,0.7561,3333.9,3333.1,0.2986]
[1732340793608,0.27704912,3333.8,3333.1,0.2986]
[1732340793795,0.44343595,3333.8,3333.1,0.2986]
[1732340793993,0.16638683,3333.8,3333.1,0.2986]
[1732340794916,0.7561,3333.7,3333.0,0.2986]
[1732340795421,0.27688139,3333.6,3333.0,0.2986]
[1732340796143,0.7561,3333.7,3333.0,0.2986]
[1732340796552,0.2768618,3333.6,3333.0,0.2986]
[1732340796751,0.7561,3333.4,3333.0,0.2986]
[1732340796914,0.7561,3333.2,3332.5,0.2986]
[1732340797448,0.27666353,3333.1,3332.5,0.2986]
[1732340798431,0.15827635,3333.1,3332.5,0.2986]
[1732340800046,0.15827635,3333.1,3332.2,0.7771]
[1732340800047,0.15827635,3333.1,3332.3,0.2986]
[1732340801404,0.7561,3333.2,3332.3,0.2986]
[1732340801605,0.64604666,3333.7,3332.9,0.9508]
[1732340801843,0.27642958,3333.6,3332.9,0.9508]
[1732340802030,0.27642958,3333.7,3332.9,0.9508]
[1732340802256,0.27642958,3333.6,3332.9,0.9508]
[1732340802457,1.0505015,3333.5,3332.9,0.15]
[1732340802675,0.7741,3333.5,3332.9,0.15]
[1732340804044,0.55,3334.1,3333.0,0.8008]
[1732340804253,0.2764102,3334.0,3333.0,1.0994]
[1732340804453,0.2764102,3333.9,3333.0,1.0994]
[1732340804970,0.16987272,3334.0,3333.0,1.0994]
[1732340806287,0.2764313,3333.9,3333.0,1.0994]
[1732340806483,0.16987272,3334.0,3333.0,1.0994]
[1732340807885,0.27652673,3333.9,3333.0,1.0994]
[1732340809184,0.27652673,3333.9,3333.2,0.2986]
[1732340809395,0.27652673,3333.9,3333.4,0.00432112]
[1732340812892,0.16987272,3334.0,3333.4,0.00432112]
[1732340813051,0.27696919,3333.9,3333.4,0.00432112]
[1732340814796,0.16987272,3334.0,3333.4,0.00432112]
[1732340814797,0.27717497,3333.8,3333.4,0.00432112]
[1732340815008,0.16987272,3334.0,3333.4,0.00432112]
[1732340815309,0.27717062,3333.9,3333.4,0.00432112]
[1732340816807,0.16987272,3334.0,3333.4,0.00432112]
[1732340817169,0.27736177,3333.9,3333.4,0.00432112]
[1732340818383,0.27736177,3333.8,3333.4,0.00432112]
[1732340818584,0.27736177,3333.7,3333.4,0.00432112]
[1732340818786,0.16987272,3334.0,3333.4,0.00432112]
[1732340818787,0.27736177,3333.6,3333.4,0.00432112]
[1732340819006,0.16987272,3334.0,3333.4,0.00432112]
[1732340819216,0.27741077,3333.9,3333.4,0.00432112]
[1732340819509,0.27741077,3333.8,3333.4,0.00432112]
[1732340819715,0.27741077,3333.7,3333.4,0.00432112]
[1732340819883,0.27744117,3333.6,3333.4,0.00432112]
[1732340820066,0.27744117,3333.9,3333.4,0.00432112]
[1732340820273,0.27744117,3333.8,3333.4,0.00432112]
[1732340820471,0.27744117,3333.7,3333.4,0.00432112]
[1732340820692,1.05764117,3333.6,3333.4,0.00432112]
[1732340820914,0.27744117,3333.5,3333.4,0.00432112]
[1732340821100,1.60764117,3333.5,3333.4,0.00432112]
[1732340821305,0.55,3333.4,3332.9,0.15]
[1732340821617,0.49320529,3333.3,3332.9,0.15]
[1732340821811,0.27744117,3333.2,3332.9,0.15]
[1732340821988,0.27744117,3333.1,3332.9,0.15]
[1732340822186,0.21576412,3333.3,3332.9,0.15]
[1732340822388,0.27728589,3333.2,3332.9,0.15]
[1732340822587,0.27728589,3333.1,3332.9,0.15]
[1732340822801,0.27728589,3333.0,3332.9,0.15]
[1732340826578,1.05748589,3333.0,3332.9,0.15]
[1732340826790,1.21823448,3333.0,3332.9,0.15]
[1732340827188,0.43803448,3333.0,3332.9,0.15]
[1732340828323,0.27728589,3333.0,3332.9,0.6373]
[1732340829237,0.55,3333.1,3332.9,0.6373]
[1732340829448,0.277138,3333.0,3332.9,0.6373]
[1732340829587,0.01,3334.2,3332.9,0.9359]
[1732340829588,0.7802,3333.8,3332.9,0.9359]
[1732340829787,0.27711513,3333.7,3332.9,0.9359]
[1732340830032,0.27711513,3333.6,3332.9,0.9359]
[1732340830196,0.46086664,3333.6,3332.9,0.9359]
[1732340830400,0.27711513,3333.5,3332.9,0.9359]
[1732340836294,0.27697335,3333.4,3332.9,0.9359]
[1732340836498,0.27699382,3333.3,3332.9,0.9359]
[1732340836835,0.18375151,3333.6,3332.9,0.9359]
[1732340837042,0.27700394,3333.5,3332.9,0.9359]
[1732340838118,0.27700394,3333.5,3333.2,0.2986]
[1732340838306,0.27700394,3333.5,3333.3,1.0847]
[1732340838499,0.7802,3334.3,3333.3,1.0847]
[1732340838696,0.27707424,3334.2,3333.4,0.2986]
[1732340838922,0.27707424,3334.1,3333.7,1.1305]
[1732340839095,1.0847,3334.3,3333.9,0.2986]
[1732340839438,0.7802,3334.8,3333.9,0.2986]
[1732340839687,1.10887962,3334.7,3333.9,0.2986]
[1732340839842,0.25247637,3334.6,3333.9,0.2986]
[1732340840147,0.52945599,3334.6,3333.9,0.2986]
[1732340840315,0.27697962,3334.5,3333.9,0.2986]
[1732340842423,0.25247637,3334.6,3334.0,0.8319]
[1732340842627,0.8319,3334.9,3334.0,0.8319]
[1732340842798,0.2768756,3334.8,3334.0,0.8319]
[1732340843002,0.8046,3335.8,3334.0,0.8319]
[1732340843316,0.27686798,3335.7,3334.2,0.8319]
[1732340843522,0.8046,3335.4,3334.2,0.8319]
[1732340843727,0.82686798,3335.3,3334.2,0.8319]
[1732340843933,0.27686798,3335.2,3334.2,0.8319]
[1732340845037,0.27686798,3335.2,3334.3,0.8319]
[1732340845239,0.8046,3335.7,3334.3,0.8319]
[1732340845549,0.80776025,3335.6,3334.1,0.40428668]
[1732340845750,0.27648791,3335.5,3334.4,0.8319]
[1732340845928,0.8046,3335.7,3334.4,0.8319]
[1732340846129,0.44188793,3335.6,3334.4,0.8319]
[1732340846331,0.16538477,3335.6,3334.6,0.8319]
[1732340849460,0.8046,3335.7,3334.6,0.8319]
[1732340855660,0.8046,3335.7,3334.7,0.7893]
[1732340857328,0.0446477,3335.9,3334.8,0.2986]
[1732340857529,0.0446477,3335.9,3335.0,0.2986]
[1732340857760,1.194114,3335.8,3335.2,0.2986]
[1732340857921,0.0446477,3335.9,3335.3,0.7893]
[1732340858125,0.4588937,3335.9,3335.3,0.7893]
[1732340860363,0.0446477,3335.9,3335.3,0.7893]
[1732340861755,0.20430247,3335.9,3335.3,0.7893]
[1732340862284,0.20430247,3335.9,3334.8,0.7594]
[1732340862285,0.55,3335.6,3334.8,0.7594]
[1732340862485,0.7626,3335.5,3333.8,0.7594]
[1732340862662,0.7626,3335.5,3333.9,0.7594]
[1732340862663,0.55,3335.4,3333.9,0.7594]
[1732340862987,0.55,3335.4,3334.0,0.7594]
[1732340863355,0.55,3335.4,3334.1,0.7594]
[1732340865281,0.27609161,3335.3,3334.1,0.7594]
[1732340866554,0.27609161,3335.3,3334.1,1.058]
[1732340866769,0.55,3335.2,3334.3,0.7594]
[1732340867251,0.27635371,3335.1,3334.3,0.7594]
[1732340867491,0.7756,3335.3,3334.4,0.2986]
[1732340867650,0.55,3335.0,3334.4,0.2986]
[1732340867860,1.3256,3334.8,3334.0,1.1007]
[1732340868198,0.55,3334.6,3334.0,1.1007]
[1732340868357,0.27656444,3334.5,3334.0,1.1007]
[1732340868760,0.55,3334.4,3333.8,0.2986]
[1732340868972,0.27656444,3334.3,3333.8,0.2986]
[1732340869168,0.27656444,3334.2,3333.8,0.2986]
[1732340869397,0.55,3334.6,3333.8,0.2986]
[1732340869744,0.55,3334.4,3333.8,0.2986]
[1732340869860,0.27659209,3334.3,3333.8,0.2986]
[1732340871299,1.05219209,3334.3,3333.8,0.2986]
[1732340871600,0.4368113,3334.2,3333.8,0.2986]
[1732340871801,0.16021921,3334.2,3333.8,0.2986]
[1732340872386,0.55,3334.5,3333.7,0.8021]
[1732340872615,0.55,3334.3,3333.7,0.8021]
[1732340872909,0.02,3335.3,3333.7,0.8021]
[1732340873123,0.55,3335.1,3333.7,0.8021]
[1732340873411,0.55,3334.9,3333.7,0.8021]
[1732340873711,0.55,3334.7,3333.7,0.8021]
[1732340873878,0.27643342,3334.6,3333.7,0.8021]
[1732340874073,1.3256,3334.7,3333.7,0.8021]
[1732340874575,0.27640574,3334.6,3333.7,0.8021]
[1732340874780,0.16020057,3334.5,3333.7,0.8021]
[1732340875073,0.82637321,3334.4,3333.7,0.8021]
[1732340875399,0.55,3334.4,3333.7,0.8021]
[1732340876815,0.16020057,3334.5,3333.7,0.8021]
[1732340877021,0.55,3334.6,3333.7,0.8021]
[1732340877380,0.55,3334.7,3333.7,0.8021]
[1732340877574,0.27623207,3334.6,3333.7,0.8021]
[1732340877880,0.55,3334.7,3333.7,0.8021]
[1732340878081,0.19591709,3334.6,3333.7,0.8021]
[1732340880109,0.55,3335.0,3333.7,0.8021]
[1732340880313,0.27618636,3334.9,3333.7,1.20638668]
[1732340880625,0.01,3335.8,3333.7,1.20638668]
[1732340880626,0.7903,3335.4,3333.8,0.8205]
[1732340880774,0.27620862,3335.3,3333.8,0.8205]
[1732340881501,0.55,3335.2,3333.9,0.8205]
[1732340881694,0.27620862,3335.1,3333.9,0.8205]
[1732340882584,0.27620862,3335.1,3334.2,0.2986]
[1732340882823,0.27620862,3335.1,3334.4,0.2091]
[1732340885012,0.50260686,3335.1,3334.5,0.9401]
[1732340885209,0.7903,3335.7,3334.9,0.1196]
[1732340885402,0.27627111,3335.6,3335.1,0.1196]
[1732340885720,0.65161262,3336.0,3335.2,0.8205]
[1732340885893,0.27630206,3335.8,3335.3,0.1196]
[1732340886927,0.7893,3336.1,3334.7,0.1196]
[1732340887251,0.7893,3336.1,3335.3,0.1196]
[1732340887385,0.7893,3336.1,3335.3,0.8205]
[1732340891746,0.7893,3336.1,3335.3,0.2986]
[1732340891912,0.7893,3336.1,3335.5,0.8205]
[1732340892107,0.7893,3336.1,3335.5,1.1191]
[1732340892343,0.7893,3336.1,3335.6,0.8205]
[1732340894772,0.20707247,3335.9,3335.6,0.8205]
[1732340895340,0.0446477,3335.9,3335.6,0.8205]
[1732340896177,0.0446477,3335.9,3335.6,1.1191]
[1732340896404,0.0446477,3335.9,3335.8,0.00644458]
[1732340897383,0.0446477,3335.9,3335.8,1.12554458]
[1732340907285,0.0446477,3335.9,3335.8,1.52983126]
[1732340907487,0.0446477,3336.9,3336.4,0.00644458]
[1732340907688,0.0446477,3336.9,3336.7,0.00644458]
[1732340918335,0.0446477,3336.9,3336.8,0.83114458]
[1732340925812,0.0446477,3336.9,3336.8,0.00644458]
[1732340926155,0.0446477,3336.9,3336.8,0.30504458]
[1732340926359,0.32149125,3336.9,3336.8,0.30504458]
[1732340926510,1.14919125,3336.9,3336.8,0.30504458]
[1732340927065,1.14919125,3336.9,3336.8,0.00644458]
[1732340928816,0.8723477,3336.9,3336.8,0.00644458]
[1732340929045,1.14933531,3336.9,3336.8,0.00644458]
[1732340929253,1.32940956,3336.9,3336.8,0.00644458]
[1732340929615,1.87940956,3336.9,3336.8,0.00644458]
[1732340930956,0.87940956,3336.9,3336.8,0.00644458]
[1732340933832,1.70710956,3336.9,3336.8,0.00644458]
[1732340934919,1.15710956,3336.9,3336.8,0.00644458]
[1732340935124,0.97703531,3336.9,3336.8,0.00644458]
[1732340935551,0.14933531,3336.9,3336.8,0.00644458]
[1732340939361,0.14933531,3336.9,3336.7,0.5327]
[1732340939676,0.7703,3337.4,3336.7,0.5327]
[1732340939852,0.7703,3337.4,3336.9,0.00644458]
[1732340941464,0.55,3337.3,3336.9,0.00644458]
[1732340942432,0.7703,3337.2,3336.9,0.00644458]
[1732340942881,0.276583,3337.1,3336.9,0.00644458]
[1732340943173,0.276583,3337.0,3336.9,0.00644458]
[1732340944434,0.276583,3337.1,3337.0,0.00644458]
[1732340944639,0.27652991,3337.1,3337.0,0.00644458]
[1732340947473,1.06292991,3337.1,3337.0,0.00644458]
[1732340948769,1.61292991,3337.1,3337.0,0.00644458]
[1732340948945,1.7742229,3337.1,3337.0,0.00644458]
[1732340949142,1.49769299,3337.1,3337.0,0.00644458]
[1732340949582,1.7743683,3337.1,3337.0,0.00644458]
[1732340950483,2.42011977,3337.1,3337.0,0.00644458]
[1732340951886,2.14344446,3337.1,3337.0,0.00644458]
[1732340952081,2.42014075,3337.1,3337.0,0.00644458]
[1732340955303,2.14344446,3337.1,3337.0,0.00644458]
[1732340955509,2.42041753,3337.1,3337.0,0.00644458]
[1732340956498,1.77466606,3337.1,3337.0,0.00644458]
[1732340957690,0.43826606,3337.1,3337.0,0.00644458]
[1732340957872,0.27697307,3337.1,3337.0,0.00644458]
[1732340958779,0.27120608,3337.1,3337.0,0.00644458]
[1732340959298,0.7864,3337.5,3337.0,0.00644458]
[1732340959465,0.7864,3337.5,3337.0,0.5198]
[1732340959876,0.87156,3337.8,3337.0,0.5198]
[1732340960080,0.7522,3337.8,3337.0,0.8179]
[1732340961796,0.55,3337.7,3337.0,0.8179]
[1732340962276,1.40383115,3337.8,3337.0,0.8179]
[1732340962476,1.55873592,3337.8,3337.0,0.8179]
[1732340963201,0.55,3337.7,3337.0,0.8179]
[1732340963391,0.55,3337.7,3336.9,0.00644458]
[1732340964107,1.55873592,3337.8,3337.0,1.1165]
[1732340964417,0.16033836,3337.7,3337.0,1.1165]
[1732340964567,0.65163115,3337.8,3337.0,1.1165]
[1732340964774,0.55,3337.8,3337.0,1.1165]
[1732340966783,0.55,3337.8,3337.2,0.00644458]
[1732340967105,0.0446477,3337.9,3337.5,0.00644458]
[1732340967510,0.0446477,3337.9,3337.7,0.00644458]
[1732340970884,0.27670147,3337.8,3337.7,0.00644458]
[1732340972442,0.0446477,3337.9,3337.7,0.00644458]
[1732340972569,0.27675196,3337.8,3337.7,0.00644458]
[1732340972776,0.0446477,3337.9,3337.7,0.00644458]
[1732340974486,0.0446477,3337.9,3337.8,1.10434458]
[1732340981826,0.0446477,3337.9,3337.8,1.13429816]
[1732340982225,0.0446477,3337.9,3337.8,1.28491525]
[1732340984435,0.0446477,3337.9,3337.8,1.25496167]
[1732340986939,0.0446477,3337.9,3337.8,1.2849153]
[1732340988052,0.0446477,3337.9,3337.8,1.25496167]
[1732340990138,0.0446477,3337.9,3337.8,1.10434458]
[1732340996186,0.0446477,3337.9,3337.8,1.13429947]
[1732340997880,0.0446477,3337.9,3337.8,1.14429947]
[1732341000591,0.0446477,3337.9,3337.8,1.68429947]
[1732341000751,0.0446477,3337.9,3337.8,1.10434458]
[1732341000951,0.0446477,3337.9,3337.8,1.28465771]
[1732341001384,0.0446477,3337.9,3337.8,1.31460904]
[1732341001553,0.0446477,3337.9,3337.8,1.28465771]
[1732341002072,0.0446477,3337.9,3337.8,1.10434458]
[1732341002500,0.0446477,3337.9,3337.8,0.00644458]
[1732341009124,0.8173477,3337.9,3337.8,0.00644458]
[1732341009691,0.0446477,3337.9,3337.8,0.00644458]
[1732341022054,0.0446477,3337.9,3337.8,1.11684458]
[1732341025313,0.0446477,3337.9,3337.8,0.00644458]
[1732341026110,1.14055328,3337.9,3337.8,0.00644458]
[1732341027778,1.14055526,3337.9,3337.8,0.00644458]
[1732341028073,1.80071036,3337.9,3337.8,0.00644458]
[1732341028680,1.9807814,3337.9,3337.8,0.00644458]
[1732341029175,0.8186,3337.7,3336.5,0.2981]
[1732341029339,0.27730756,3337.6,3336.5,0.2981]
[1732341029541,0.8186,3337.4,3336.5,0.2981]
[1732341029770,0.27730756,3337.3,3336.5,0.2981]
[1732341031238,0.27730756,3337.3,3336.5,0.32806868]